bitfinex/quotes_ETHUSD_20241018
["timestamp","ask_amount","ask_price","bid_price","bid_amount"]
[1729246176820,1.6708465,2627.0,2626.8,1.19811079]
[1729246177169,5.4774065,2627.1,2626.8,1.19811079]
[1729246177316,5.4774065,2627.1,2626.9,1.55220624]
[1729246177492,9.2839865,2627.1,2626.9,1.19811079]
[1729246177815,5.4774065,2627.1,2626.9,1.19811079]
[1729246178779,5.4774065,2627.1,2627.0,0.06977307]
[1729246182029,5.4774065,2627.1,2626.8,1.19811079]
[1729246182230,1.6708465,2626.9,2626.8,1.19811079]
[1729246182526,3.80673,2627.0,2626.7,1.95071079]
[1729246182691,3.80673,2627.0,2626.8,1.19811079]
[1729246182894,5.4775765,2627.0,2626.8,1.19811079]
[1729246185390,3.80676,2626.9,2626.8,1.19811079]
[1729246185736,3.80656,2627.1,2626.8,1.19811079]
[1729246185914,1.6708465,2627.0,2626.8,1.19811079]
[1729246187104,1.6708465,2627.1,2626.8,1.19811079]
[1729246187307,1.6708465,2627.2,2626.9,1.94051789]
[1729246187507,1.6708465,2627.1,2626.9,1.19811079]
[1729246190040,3.80636,2627.2,2626.9,1.19811079]
[1729246190242,1.6708465,2627.1,2626.9,1.19811079]
[1729246191146,3.80636,2627.2,2626.9,1.19811079]
[1729246191298,9.2830765,2627.4,2627.0,0.8101]
[1729246191499,1.6708465,2627.5,2627.0,2.00821079]
[1729246191699,5.4768565,2627.5,2627.1,0.20843437]
[1729246191922,1.6708465,2627.4,2627.1,0.20843437]
[1729246192107,5.4769065,2627.4,2627.1,0.20843437]
[1729246192308,1.6708465,2627.2,2627.1,1.19811079]
[1729246192513,1.6708465,2627.2,2627.0,2.00821079]
[1729246193239,1.6708465,2627.3,2627.0,2.00821079]
[1729246193735,1.6708465,2627.3,2627.1,0.06953008]
[1729246194110,3.80606,2627.4,2627.1,0.06953008]
[1729246194319,5.4769065,2627.4,2627.1,0.82461719]
[1729246195017,1.6708465,2627.3,2627.1,0.82461719]
[1729246195217,5.4771065,2627.3,2627.1,0.06953008]
[1729246195415,1.6708465,2627.2,2627.1,0.06953008]
[1729246197844,1.6708465,2627.2,2626.9,1.25521926]
[1729246198044,1.6708465,2627.2,2627.0,0.0695678]
[1729246198965,1.6708465,2627.1,2627.0,0.0695678]
[1729246199144,5.4773165,2627.1,2627.0,0.0695678]
[1729246199343,6.90777715,2627.1,2627.0,0.0695678]
[1729246199686,9.90777715,2627.1,2627.0,0.0695678]
[1729246199968,3.80662,2627.0,2626.9,0.05710847]
[1729246200129,6.2799665,2627.0,2626.9,0.05710847]
[1729246200326,4.60984,2626.5,2626.4,1.19811079]
[1729246200530,6.2806865,2626.5,2626.2,1.19811079]
[1729246200763,5.4783465,2626.4,2626.2,1.19811079]
[1729246201069,1.6708465,2626.3,2626.2,1.19811079]
[1729246201240,5.4783465,2626.4,2626.1,1.19811079]
[1729246202255,1.6708465,2626.3,2626.1,1.19811079]
[1729246202834,3.80736,2626.5,2626.1,1.75865498]
[1729246203033,5.4782065,2626.5,2626.1,1.75865498]
[1729246203576,4.62627,2626.7,2626.3,0.7816]
[1729246203577,5.4779065,2626.7,2626.3,0.7816]
[1729246203734,5.4779065,2626.7,2626.4,0.57873608]
[1729246204072,1.6708465,2626.6,2626.3,0.7816]
[1729246204234,5.4779065,2626.7,2626.3,0.7816]
[1729246204567,1.6708465,2626.6,2626.3,0.7816]
[1729246205247,3.80706,2626.7,2626.3,0.7816]
[1729246205567,1.6708465,2626.6,2626.3,1.58112739]
[1729246206274,1.6708465,2626.4,2626.3,0.79952739]
[1729246206586,1.6708465,2626.4,2626.2,1.19811079]
[1729246206730,1.6708465,2626.3,2626.2,1.19811079]
[1729246206930,1.6708465,2626.4,2626.2,1.19811079]
[1729246207257,1.6708465,2626.3,2626.2,1.19811079]
[1729246207460,1.6708465,2626.3,2626.1,1.81578018]
[1729246207680,3.80758,2626.4,2626.1,1.19811079]
[1729246207681,5.4786265,2626.2,2626.1,1.19811079]
[1729246207982,3.80794,2626.1,2625.9,1.19811079]
[1729246208137,1.6708465,2626.0,2625.8,1.19811079]
[1729246208331,5.4790565,2625.9,2625.6,1.19811079]
[1729246208737,3.80836,2625.8,2625.7,0.07110557]
[1729246208968,7.61654,2625.9,2625.7,0.07110557]
[1729246209273,1.6708465,2625.8,2625.5,2.01941079]
[1729246210189,4.64158,2625.7,2625.6,0.05713632]
[1729246210336,8.45017,2625.7,2625.6,0.05713632]
[1729246210535,9.295187,2625.7,2625.6,0.05713632]
[1729246211232,10.9660335,2625.7,2625.6,0.05713632]
[1729246211938,9.295187,2625.7,2625.6,0.05713632]
[1729246213970,5.486597,2625.7,2625.6,0.05713632]
[1729246214273,4.64158,2625.7,2625.6,0.05713632]
[1729246216053,8.3797,2626.2,2625.7,3.80843]
[1729246216254,4.57178,2626.2,2625.7,3.80843]
[1729246216464,3.8071,2626.7,2626.0,3.80799]
[1729246216767,3.80708,2626.7,2626.2,0.7636]
[1729246216962,0.8275,2626.8,2626.3,3.80762]
[1729246217290,11.35092973,2626.9,2626.3,3.80762]
[1729246217291,3.80685,2626.9,2626.4,3.80748]
[1729246218380,3.80685,2626.9,2626.3,3.80763]
[1729246218583,3.80685,2626.9,2626.3,7.61517]
[1729246218787,3.80685,2626.9,2626.4,3.80748]
[1729246219467,0.8293,2627.0,2626.4,0.837862]
[1729246219676,0.7976,2627.2,2626.7,3.80693]
[1729246219879,3.8063,2627.3,2626.7,3.80693]
[1729246220182,3.80659,2627.1,2626.6,0.7766]
[1729246220542,3.80633,2627.2,2626.6,0.7766]
[1729246220744,0.7932,2627.0,2626.4,0.05711906]
[1729246220949,3.80693,2626.8,2626.4,0.05711906]
[1729246221153,3.80699,2626.8,2626.4,0.05711906]
[1729246221963,7.61401,2626.8,2626.4,0.05711906]
[1729246222145,3.80699,2626.8,2626.4,0.05711906]
[1729246222548,3.80729,2626.6,2626.4,0.05711906]
[1729246222781,3.80734,2626.5,2626.4,0.05711906]
[1729246223350,4.58854,2626.5,2626.4,0.05711906]
[1729246223648,4.58854,2626.5,2626.4,0.12757315]
[1729246226053,3.80734,2626.5,2626.4,0.12757315]
[1729246226463,5.02212597,2626.5,2626.4,0.12757315]
[1729246226785,8.7593357,2626.5,2626.4,0.12757315]
[1729246227151,8.7593357,2626.5,2626.4,0.05711906]
[1729246227152,5.02212597,2626.5,2626.4,0.05711906]
[1729246227653,5.02212597,2626.5,2626.4,0.12765632]
[1729246228065,1.21478597,2626.5,2626.4,0.12765632]
[1729246228297,7.61451,2626.6,2626.4,0.05711906]
[1729246228746,3.80721,2626.6,2626.5,0.07043976]
[1729246230977,3.80706,2626.7,2626.5,0.07043976]
[1729246231359,7.61419,2626.7,2626.5,0.07043976]
[1729246232196,3.8072,2626.6,2626.5,0.10946955]
[1729246237303,3.80706,2626.7,2626.5,0.10946955]
[1729246237623,7.61425,2626.7,2626.5,0.10946955]
[1729246237784,3.80706,2626.7,2626.5,0.10946955]
[1729246237988,3.80706,2626.7,2626.5,0.93406955]
[1729246238184,0.7793,2626.9,2626.5,0.93406955]
[1729246238185,3.80691,2626.9,2626.5,0.93406955]
[1729246238423,7.61348,2627.0,2626.5,5.22113941]
[1729246238626,3.80677,2626.9,2626.5,1.41392941]
[1729246239184,3.8072,2626.6,2626.5,0.10946955]
[1729246240330,3.80734,2626.5,2626.4,0.05711906]
[1729246240499,8.34064973,2626.5,2626.4,0.05711906]
[1729246242637,3.80824,2625.9,2625.7,0.7827]
[1729246243135,3.80824,2625.9,2625.8,0.10437252]
[1729246243600,3.80824,2625.9,2625.5,0.8093]
[1729246243806,3.80824,2625.9,2625.8,0.10441671]
[1729246244126,3.80839,2625.8,2625.5,0.8093]
[1729246244326,3.80824,2625.9,2625.5,0.8093]
[1729246245327,3.80821,2626.0,2625.5,1.9359687]
[1729246246227,3.80821,2626.0,2625.5,8.42674]
[1729246246428,3.80821,2626.0,2625.5,9.62215644]
[1729246246599,3.80821,2626.0,2625.5,5.81343644]
[1729246247214,3.80783,2626.2,2625.6,0.7654]
[1729246247415,3.80783,2626.2,2625.7,3.80842]
[1729246247716,3.80783,2626.2,2625.7,4.76621464]
[1729246249148,3.80801,2626.1,2625.7,0.95779464]
[1729246249440,3.80783,2626.2,2625.7,4.76629464]
[1729246251646,3.80795,2626.1,2625.7,0.95779464]
[1729246252938,3.80778,2626.2,2625.9,0.8136]
[1729246253139,3.80774,2626.3,2625.9,0.8136]
[1729246253726,3.80774,2626.3,2626.0,0.10439802]
[1729246255542,3.80742,2626.5,2626.0,0.10439802]
[1729246255702,3.80721,2626.6,2626.1,4.62922]
[1729246255906,3.80721,2626.6,2626.2,1.08548003]
[1729246257050,3.80743,2626.5,2626.2,1.08548003]
[1729246257548,3.80721,2626.6,2626.2,0.10415579]
[1729246257756,0.8228,2627.4,2626.5,0.8164]
[1729246257909,3.80665,2627.0,2626.5,4.62373]
[1729246258112,3.80638,2627.2,2626.7,4.6234]
[1729246258341,3.80638,2627.2,2626.8,0.10346832]
[1729246258550,3.80638,2627.2,2626.7,5.81881644]
[1729246258847,3.80611,2627.4,2626.7,5.81881644]
[1729246258848,3.80628,2627.3,2626.9,0.10336936]
[1729246259073,3.80628,2627.3,2626.8,1.29888476]
[1729246259356,3.80621,2627.3,2626.9,0.10336936]
[1729246260143,3.80611,2627.4,2627.0,0.8164]
[1729246260312,3.80611,2627.4,2627.0,0.91957946]
[1729246263447,7.61228,2627.4,2627.0,0.91957946]
[1729246263840,3.80621,2627.3,2627.0,0.91957946]
[1729246264153,7.61226,2627.4,2627.0,0.91957946]
[1729246264338,3.8062,2627.3,2627.0,0.91957946]
[1729246264654,3.80611,2627.4,2627.0,0.91957946]
[1729246264655,7.61224,2627.4,2627.0,0.91957946]
[1729246265626,3.80611,2627.4,2627.0,0.91957946]
[1729246267938,3.80626,2627.3,2627.0,0.91957946]
[1729246268124,3.80627,2627.3,2627.0,0.10317946]
[1729246268456,3.80647,2627.1,2627.0,0.10317946]
[1729246268641,3.80662,2627.0,2626.6,0.7868]
[1729246272054,4.62432,2627.2,2626.6,0.7868]
[1729246272376,3.8058,2627.6,2626.4,1.25253544]
[1729246272377,3.80614,2627.4,2626.8,4.59401]
[1729246272561,4.59375,2627.8,2627.2,0.7872]
[1729246272724,4.59375,2627.8,2627.3,3.80607]
[1729246273059,3.80555,2627.8,2627.3,3.80607]
[1729246273424,3.80545,2627.9,2627.4,3.80593]
[1729246273623,4.59347,2628.0,2627.4,0.7872]
[1729246273859,3.8054,2627.9,2627.4,4.59321]
[1729246274064,3.80526,2628.0,2627.4,4.59321]
[1729246274370,3.73720973,2628.1,2627.4,4.59316]
[1729246274526,4.9244607,2628.1,2627.4,4.59316]
[1729246274858,3.80534,2627.9,2627.4,4.59316]
[1729246275769,8.7296307,2628.1,2627.4,4.59315]
[1729246275928,3.80526,2628.0,2627.4,4.59315]
[1729246276271,3.80526,2628.0,2627.5,4.60119]
[1729246276772,3.80517,2628.1,2627.6,3.80574]
[1729246276942,3.80517,2628.1,2627.7,0.7953]
[1729246277639,3.80511,2628.1,2627.7,0.7953]
[1729246277866,3.73720973,2627.9,2627.1,0.7885]
[1729246278076,3.73720973,2627.9,2627.2,0.55]
[1729246278077,3.80553,2627.8,2627.2,0.55]
[1729246278371,3.80553,2627.8,2627.4,0.7885]
[1729246278543,3.80563,2627.7,2627.4,0.7885]
[1729246278731,7.61137,2627.7,2627.4,0.7885]
[1729246278929,3.80563,2627.7,2627.4,0.7885]
[1729246280772,3.80563,2627.7,2627.5,0.05709388]
[1729246280940,7.54260973,2627.9,2627.5,0.05709388]
[1729246281140,8.3725707,2627.9,2627.5,0.05709388]
[1729246281672,3.80559,2627.8,2627.5,0.05709388]
[1729246282894,3.80553,2627.8,2627.5,0.05709388]
[1729246283852,3.80553,2627.8,2627.6,0.09859043]
[1729246285003,3.8056,2627.7,2627.6,0.09859043]
[1729246285473,8.7606348,2627.7,2627.6,0.09859043]
[1729246285660,12.5583348,2627.7,2627.6,0.09859043]
[1729246285863,12.5583348,2627.7,2626.9,0.7511]
[1729246285864,3.8066,2627.1,2626.9,0.7511]
[1729246286047,3.73720973,2627.0,2626.4,0.7511]
[1729246286252,3.80695,2626.8,2626.4,0.7511]
[1729246286494,7.54415973,2626.8,2626.4,0.7511]
[1729246286717,3.80706,2626.7,2626.5,0.05711445]
[1729246287311,3.73720973,2626.8,2626.5,0.05711445]
[1729246287312,7.54413973,2626.8,2626.5,0.05711445]
[1729246287451,3.80713,2626.7,2626.5,0.05711445]
[1729246288050,7.54440973,2626.6,2626.5,0.05711445]
[1729246291324,7.54440973,2626.6,2626.5,0.05711445]
[1729246292620,0.7971,2627.0,2626.5,0.05711445]
[1729246292825,3.80679,2626.9,2626.6,0.7637]
[1729246293121,3.80647,2627.1,2626.6,0.7637]
[1729246293324,3.80649,2627.1,2626.7,0.46280245]
[1729246295000,3.80664,2627.0,2626.7,0.46280245]
[1729246296708,11.35054973,2627.0,2626.6,0.7637]
[1729246296935,7.54384973,2627.0,2626.6,0.7637]
[1729246297242,3.73720973,2627.0,2626.6,4.57088]
[1729246297737,7.54385973,2627.0,2626.6,0.7637]
[1729246298738,7.54385973,2627.0,2626.7,0.09994469]
[1729246299349,7.54411973,2626.8,2626.7,0.09994469]
[1729246299639,7.54411973,2626.8,2626.5,0.05711445]
[1729246299640,3.8072,2626.6,2626.5,0.05711445]
[1729246299847,7.54440973,2626.6,2626.5,0.05711445]
[1729246300206,8.37110973,2626.6,2626.5,0.05711445]
[1729246300402,9.45499634,2626.6,2626.5,0.05711445]
[1729246307154,3.80736,2626.5,2625.8,0.7514]
[1729246307374,3.80815,2626.0,2625.8,0.7514]
[1729246307530,7.61632,2626.0,2625.6,0.7514]
[1729246307859,3.80821,2625.9,2625.6,1.4863425]
[1729246308029,3.80821,2625.9,2625.6,0.7514]
[1729246310768,3.80836,2625.8,2625.5,0.0571379]
[1729246311858,3.80827,2625.9,2625.5,0.0571379]
[1729246313045,3.80837,2625.8,2625.5,0.0571379]
[1729246313965,3.80837,2625.8,2625.6,0.09773723]
[1729246314823,3.80813,2626.0,2625.7,0.7584]
[1729246315024,3.80821,2625.9,2625.7,0.85603819]
[1729246317058,3.80814,2626.0,2625.7,0.85603819]
[1729246317356,3.80796,2626.1,2625.7,4.66452819]
[1729246317522,3.80796,2626.1,2625.8,0.46645282]
[1729246317722,4.63939,2625.9,2625.5,0.0571379]
[1729246318443,3.80829,2625.9,2625.5,0.0571379]
[1729246319754,3.80837,2625.8,2625.5,0.0571379]
[1729246320528,3.80829,2625.9,2625.5,0.0571379]
[1729246320724,3.80851,2625.7,2625.5,0.0571379]
[1729246320963,3.80865,2625.6,2625.5,0.0571379]
[1729246328412,3.80822,2625.9,2625.6,0.8048]
[1729246328620,3.80793,2626.1,2625.6,1.27188479]
[1729246328823,3.80816,2626.0,2625.7,0.09656035]
[1729246329032,7.61656,2625.9,2625.7,0.09656035]
[1729246329194,3.80831,2625.9,2625.7,0.09656035]
[1729246329517,3.80836,2625.8,2625.7,0.09656035]
[1729246331217,3.80836,2625.8,2625.5,0.0571379]
[1729246331428,3.80836,2625.8,2625.7,0.09656035]
[1729246331619,3.80836,2625.8,2625.5,0.0571379]
[1729246331821,3.80836,2625.8,2625.7,0.09656035]
[1729246332024,3.80836,2625.8,2625.5,0.0571379]
[1729246332328,3.80836,2625.8,2625.7,0.09656035]
[1729246332502,0.8095,2625.9,2625.6,0.0966594]
[1729246332708,0.8095,2625.9,2625.5,0.0571379]
[1729246332709,0.8095,2625.9,2625.7,0.09656035]
[1729246333097,4.61774,2625.9,2625.5,0.0571379]
[1729246333293,4.61774,2625.9,2625.8,0.09646131]
[1729246333806,4.61774,2625.9,2625.5,0.0571379]
[1729246334004,4.61774,2625.9,2625.8,0.09646908]
[1729246334201,4.61774,2625.9,2625.5,0.0571379]
[1729246334399,4.61774,2625.9,2625.8,0.09646908]
[1729246334600,4.61774,2625.9,2625.5,0.0571379]
[1729246334910,4.61774,2625.9,2625.8,0.09646908]
[1729246335122,4.61774,2625.9,2625.5,0.0571379]
[1729246335735,4.61774,2625.9,2625.6,0.09666716]
[1729246337843,1.67222098,2625.7,2625.6,0.09666716]
[1729246340842,5.48072098,2625.7,2625.6,0.09666716]
[1729246341070,1.67222098,2625.7,2625.6,0.09666716]
[1729246341224,5.48072098,2625.7,2625.6,0.09666716]
[1729246341950,3.80837,2625.8,2625.6,0.09666716]
[1729246342140,1.67222098,2625.7,2625.6,0.09666716]
[1729246344423,3.80786,2626.2,2625.7,4.61623]
[1729246344623,1.67222098,2626.1,2625.7,9.62006644]
[1729246344825,5.48008098,2626.2,2625.8,1.29187775]
[1729246345147,1.67222098,2626.1,2625.8,2.68147351]
[1729246345448,1.67222098,2626.0,2625.9,1.19541644]
[1729246345616,1.67222098,2626.0,2625.9,1.29177872]
[1729246346464,3.80759,2626.4,2625.9,1.29177872]
[1729246346663,1.67222098,2626.3,2626.0,1.19541644]
[1729246346861,3.80764,2626.3,2626.1,1.97151644]
[1729246347028,3.80759,2626.4,2626.1,2.06761599]
[1729246347029,7.61521,2626.4,2626.1,2.06761599]
[1729246347233,1.67222098,2626.2,2626.1,2.06761599]
[1729246347465,3.80759,2626.4,2626.1,2.06761599]
[1729246347663,1.67222098,2626.3,2626.1,2.06761599]
[1729246347834,3.80759,2626.4,2626.1,2.06761599]
[1729246348034,1.67222098,2626.3,2626.1,2.06761599]
[1729246348634,1.67222098,2626.2,2626.1,2.06761599]
[1729246348831,1.67222098,2626.3,2626.1,2.06761599]
[1729246349036,1.67222098,2626.2,2626.1,2.06761599]
[1729246349341,5.48000098,2626.2,2626.1,1.29151599]
[1729246349539,5.48000098,2626.2,2626.1,0.09609955]
[1729246350242,5.48000098,2626.2,2626.1,1.29151599]
[1729246350584,1.67222098,2626.2,2626.1,1.29151599]
[1729246354488,5.47990098,2626.3,2626.1,1.29151599]
[1729246354986,1.67222098,2626.2,2626.1,1.29151599]
[1729246357585,1.67222098,2626.2,2626.1,0.09609955]
[1729246357891,5.48000098,2626.2,2626.1,0.09609955]
[1729246358189,2.43472098,2626.2,2626.1,0.09609955]
[1729246358486,2.43472098,2626.2,2625.9,1.19541644]
[1729246358487,6.24250098,2626.2,2625.9,1.19541644]
[1729246358656,1.67222098,2626.0,2625.9,1.19541644]
[1729246359665,3.80795,2626.1,2625.9,1.19541644]
[1729246359865,5.48000098,2626.2,2626.0,1.19541644]
[1729246360811,1.67222098,2626.1,2626.0,1.19541644]
[1729246361301,1.67222098,2626.1,2626.0,0.08985967]
[1729246361760,5.48014098,2626.1,2626.0,0.08985967]
[1729246362304,5.48004098,2626.2,2626.0,0.08985967]
[1729246362474,1.67222098,2626.1,2626.0,0.08985967]
[1729246363774,5.48004098,2626.2,2626.0,1.28527611]
[1729246364698,5.48004098,2626.2,2626.0,0.08985967]
[1729246367208,1.67222098,2626.1,2626.0,0.08985967]
[1729246367879,5.48014098,2626.1,2626.0,0.08985967]
[1729246368202,7.18123708,2626.1,2626.0,0.08985967]
[1729246368576,7.18123708,2626.1,2625.5,1.65102649]
[1729246368577,3.8085,2625.7,2625.5,1.25255434]
[1729246368776,5.48072098,2625.7,2625.5,1.25255434]
[1729246368985,3.8085,2625.7,2625.5,1.25255434]
[1729246369182,3.8085,2625.7,2625.6,1.19541644]
[1729246369383,1.67222098,2625.8,2625.6,1.19541644]
[1729246369597,1.67222098,2625.8,2625.5,1.25255434]
[1729246369598,1.67222098,2625.7,2625.5,1.25255434]
[1729246369800,5.48073098,2625.7,2625.5,1.25255434]
[1729246369999,5.48073098,2625.7,2625.6,1.19541644]
[1729246370517,3.80851,2625.7,2625.6,1.19541644]
[1729246370725,3.80851,2625.7,2625.5,1.65102649]
[1729246370726,3.80865,2625.6,2625.5,1.25255434]
[1729246370873,5.48087098,2625.6,2625.5,0.0571379]
[1729246373790,5.48087098,2625.6,2625.5,0.14749276]
[1729246374002,5.48087098,2625.6,2625.5,0.0571379]
[1729246374295,5.48087098,2625.6,2625.3,1.19541644]
[1729246374608,5.48087098,2625.6,2625.4,0.09045392]
[1729246374609,1.67222098,2625.5,2625.4,0.09045392]
[1729246375113,5.48101098,2625.5,2625.4,0.09045392]
[1729246375676,5.48101098,2625.5,2625.4,0.08743879]
[1729246375995,3.80906,2625.4,2625.2,1.07690309]
[1729246376214,5.48128098,2625.4,2625.2,1.07690309]
[1729246377190,5.48128098,2625.4,2625.2,0.05714414]
[1729246377606,3.80868,2625.6,2625.0,6.30983098]
[1729246377808,5.48090098,2625.6,2625.1,3.18373819]
[1729246377976,5.48090098,2625.6,2625.1,1.51151721]
[1729246378180,9.28967098,2625.6,2625.1,1.51151721]
[1729246378488,1.67222098,2625.5,2625.1,1.51151721]
[1729246378746,1.67222098,2625.5,2625.1,5.32088721]
[1729246378881,1.67222098,2625.5,2625.2,0.05714414]
[1729246380720,5.48090098,2625.6,2625.2,0.05714414]
[1729246381174,1.67222098,2625.5,2625.2,0.82271678]
[1729246381979,0.7667,2625.7,2625.3,0.8201]
[1729246381980,1.67222098,2625.7,2625.3,0.8201]
[1729246382327,3.80846,2625.8,2625.3,0.8201]
[1729246382328,1.67222098,2625.6,2625.3,4.62914]
[1729246383521,1.67222098,2625.7,2625.4,0.08773374]
[1729246384302,1.67222098,2625.6,2625.4,0.08773374]
[1729246384502,1.67222098,2625.7,2625.4,0.08773374]
[1729246384702,5.48075098,2625.7,2625.4,1.2843571]
[1729246384952,5.48075098,2625.7,2625.4,0.08773374]
[1729246385297,4.61419,2625.9,2625.4,1.2843571]
[1729246385609,5.48041098,2626.0,2625.4,2.28475698]
[1729246385815,5.48043098,2625.9,2625.4,2.28475698]
[1729246386024,5.48043098,2625.9,2625.4,6.09368698]
[1729246386839,5.48043098,2625.9,2625.4,2.28475698]
[1729246387552,5.48043098,2625.9,2625.4,6.09365698]
[1729246387842,5.48043098,2625.9,2625.5,1.39904919]
[1729246388049,5.48040098,2626.0,2625.6,0.7718]
[1729246388344,5.48040098,2626.0,2625.6,0.85933562]
[1729246389030,1.67222098,2626.0,2625.6,4.66791562]
[1729246389231,1.67222098,2626.0,2625.7,0.7339755]
[1729246389603,1.67222098,2626.0,2625.8,0.08733754]
[1729246389800,3.80782,2626.2,2625.8,3.89568754]
[1729246390106,3.80757,2626.4,2625.9,0.6372385]
[1729246390440,5.47979098,2626.4,2625.9,1.14306433]
[1729246390626,5.47979098,2626.4,2625.9,2.33968769]
[1729246391023,5.47979098,2626.4,2625.9,6.14789769]
[1729246391344,5.47979098,2626.4,2625.9,6.14781769]
[1729246391909,5.47979098,2626.4,2625.9,2.33968769]
[1729246392114,1.67222098,2626.3,2625.9,6.14785769]
[1729246392936,5.47986098,2626.3,2625.9,2.33968769]
[1729246393247,5.47986098,2626.3,2625.9,1.83386186]
[1729246393414,1.67222098,2626.2,2625.9,1.83386186]
[1729246393614,1.67222098,2626.1,2625.9,0.0872385]
[1729246393933,5.48010098,2626.2,2625.9,0.0872385]
[1729246394856,5.48002098,2626.2,2625.9,0.0872385]
[1729246395459,1.67222098,2626.1,2625.9,0.0872385]
[1729246395617,5.48022098,2626.1,2625.9,0.0872385]
[1729246396236,1.67222098,2626.0,2625.9,0.0872385]
[1729246396446,5.48029098,2626.0,2625.9,0.0872385]
[1729246396651,6.48576408,2626.0,2625.7,1.19662336]
[1729246396919,1.0054731,2626.0,2625.8,0.08698052]
[1729246397136,1.67222098,2625.9,2625.7,1.19662336]
[1729246397433,5.48031098,2626.0,2625.7,1.19662336]
[1729246397621,1.67222098,2626.0,2625.7,1.19662336]
[1729246397822,6.24666098,2626.1,2625.7,1.19662336]
[1729246398023,1.67222098,2626.0,2625.7,1.19662336]
[1729246398253,3.80794,2626.1,2625.7,1.19662336]
[1729246398560,5.48016098,2626.1,2625.7,1.19662336]
[1729246398741,3.80794,2626.1,2625.7,1.19662336]
[1729246398947,5.48016098,2626.1,2625.7,1.25375712]
[1729246399468,3.80771,2626.3,2625.7,2.9259781]
[1729246399639,5.48009098,2626.2,2625.8,1.19662336]
[1729246400769,5.48009098,2626.2,2625.7,5.06225712]
[1729246400963,1.67222098,2626.2,2625.7,5.06225712]
[1729246401173,3.80794,2626.1,2625.7,1.25375712]
[1729246401759,5.48004098,2626.2,2625.8,1.19662336]
[1729246402131,5.48004098,2626.2,2625.7,5.06217712]
[1729246402364,3.80793,2626.1,2625.7,1.25375712]
[1729246402626,3.80793,2626.1,2625.8,1.19662336]
[1729246403574,3.80793,2626.1,2625.7,1.25375712]
[1729246403870,3.80793,2626.1,2625.8,1.19662336]
[1729246404167,3.80793,2626.1,2625.8,1.28360388]
[1729246404553,5.48015098,2626.1,2625.8,0.08698052]
[1729246404869,5.48015098,2626.1,2625.7,1.25375712]
[1729246405077,3.80793,2626.1,2625.9,0.08693322]
[1729246406077,3.80793,2626.1,2625.7,1.25375712]
[1729246407082,3.80793,2626.1,2625.8,0.08703225]
[1729246407279,3.80793,2626.1,2625.7,1.25375712]
[1729246407599,3.80793,2626.1,2625.8,0.08703225]
[1729246407797,3.80793,2626.1,2625.8,1.28365561]
[1729246408178,3.80793,2626.1,2625.8,0.08703225]
[1729246408179,7.61594,2626.1,2625.8,0.08703225]
[1729246408355,7.61594,2626.1,2625.8,1.28365561]
[1729246409292,3.80793,2626.1,2625.8,1.28365561]
[1729246409998,5.48015098,2626.1,2625.8,0.08703225]
[1729246410158,3.80793,2626.1,2625.8,0.08703225]
[1729246410355,3.80793,2626.1,2625.8,1.19662336]
[1729246410586,3.80793,2626.1,2625.9,0.08693322]
[1729246411303,3.80793,2626.1,2625.7,1.25375712]
[1729246411596,1.67222098,2626.2,2625.8,1.28365561]
[1729246411800,5.48008098,2626.2,2625.8,1.28365561]
[1729246412356,1.67222098,2626.2,2625.8,5.09198561]
[1729246412560,7.61549,2626.3,2625.9,0.7846]
[1729246412561,3.80773,2626.3,2625.9,0.7846]
[1729246412811,3.80743,2626.5,2626.0,1.83521589]
[1729246412971,4.62336,2626.7,2626.2,5.00440336]
[1729246412972,11.15724,2626.6,2626.2,5.00440336]
[1729246413181,3.80709,2626.7,2626.2,5.08047278]
[1729246413489,3.80709,2626.7,2626.3,1.28316053]
[1729246413667,5.47931098,2626.7,2626.3,1.28316053]
[1729246413870,3.80721,2626.6,2626.3,1.28316053]
[1729246414082,5.47943098,2626.6,2626.3,1.28316053]
[1729246414393,5.47943098,2626.6,2626.3,0.08653717]
[1729246414762,5.47943098,2626.6,2626.2,5.00432336]
[1729246414962,5.47943098,2626.6,2626.3,0.08656303]
[1729246415203,5.47943098,2626.6,2626.2,6.59266357]
[1729246415410,5.47943098,2626.6,2626.4,0.08646404]
[1729246415611,5.47943098,2626.6,2626.3,0.08656303]
[1729246415912,1.67222098,2626.6,2626.4,0.08646404]
[1729246416097,1.67222098,2626.6,2626.2,6.59266357]
[1729246416299,5.47935098,2626.7,2626.3,1.01003994]
[1729246417128,1.67222098,2626.7,2626.3,1.01003994]
[1729246417485,3.80701,2626.8,2626.3,1.01003994]
[1729246417695,3.80701,2626.8,2626.4,0.7846]
[1729246417870,1.67222098,2626.7,2626.5,0.08636505]
[1729246425394,3.80701,2626.8,2626.5,0.08636505]
[1729246425395,1.67222098,2626.6,2626.5,0.08636505]
[1729246425911,1.67222098,2626.6,2626.5,0.08624865]
[1729246426083,1.67222098,2626.6,2626.3,3.80754]
[1729246426284,1.67222098,2626.6,2626.4,0.08634764]
[1729246427526,1.67222098,2626.5,2626.4,0.08634764]
[1729246427686,5.47943098,2626.6,2626.2,0.8042]
[1729246427888,5.47943098,2626.6,2626.3,0.08635094]
[1729246428117,5.47943098,2626.6,2626.2,0.8042]
[1729246428330,1.67222098,2626.5,2626.3,0.08635094]
[1729246428514,1.67222098,2626.5,2626.2,0.8042]
[1729246428685,1.67222098,2626.5,2626.3,0.08635094]
[1729246428892,1.67222098,2626.5,2626.2,0.8042]
[1729246429094,1.67222098,2626.5,2626.3,0.08635094]
[1729246429314,1.67222098,2626.5,2626.2,0.8042]
[1729246429521,1.67222098,2626.5,2626.3,0.08635094]
[1729246429727,1.67222098,2626.5,2626.2,0.8042]
[1729246429920,1.67222098,2626.5,2626.3,0.08635094]
[1729246430121,1.67222098,2626.5,2626.2,0.8042]
[1729246430326,3.80734,2626.5,2626.3,0.08635094]
[1729246430594,3.80734,2626.5,2626.1,1.19662336]
[1729246430595,1.67222098,2626.4,2626.1,1.19662336]
[1729246431312,0.7851,2626.5,2626.1,5.0806142]
[1729246431504,1.67222098,2626.6,2626.2,3.80776]
[1729246431841,5.47944098,2626.6,2626.1,9.92412116]
[1729246432140,1.67222098,2626.5,2626.1,9.92410116]
[1729246432348,1.67222098,2626.5,2626.2,4.35764]
[1729246432501,1.67222098,2626.6,2626.2,4.35764]
[1729246432701,0.8038,2626.7,2626.2,7.01178777]
[1729246432896,1.67222098,2626.7,2626.3,0.7855]
[1729246433124,1.67222098,2626.7,2626.3,0.86164464]
[1729246433847,1.67222098,2626.7,2626.4,0.08627779]
[1729246434507,1.67222098,2626.7,2626.4,3.89376779]
[1729246434708,5.47922098,2626.8,2626.4,3.89376779]